{"text_format":"1","workbook":"xlsx","n_sheets":4,"sheets":["About the Model","Instructions","Interactive Model","SpendoutRates"],"not_rendered":{"charts":0,"images":2,"macros":1,"external_links":0,"defined_names":13,"comments":0,"pivot_tables":0},"unopened":[],"bounds":{"document_bytes":16777216,"sheet_cells":100000,"rows_first":2000,"rows_last":500,"rows_between":2000,"halvings":0,"cell_chars":16384,"cell_head_chars":4096},"cells_cut":0,"cells_raw":0,"read":"whole","date_system":"1900"}

{"sheet":"About the Model","index":0,"n_rows":31,"n_cols":1,"rows_kept":31,"cut":false,"hidden":false,"merged":[[30,0,30,10],[16,14,16,22],[22,0,22,10],[24,0,24,10],[26,0,26,10],[28,0,28,10],[18,0,18,10],[20,0,20,10],[6,0,6,10],[8,0,8,10],[10,0,10,10],[16,0,16,10],[12,0,12,10]]}
["This workbook supplements CBO's February 2021 report The Budget and Economic Outlook: 2021 to 2031."]
["www.cbo.gov/publication/56970"]
[]
[]
["CBO's Waterfall Model For Projecting Discretionary Spending, March 2021"]
[]
["This interactive waterfall model is a simplified version of a model used by CBO analysts to develop the agency's baseline projections of discretionary spending, as well as cost estimates for legislation that authorizes discretionary spending. It is called a \"waterfall\" model because it allows the user to see how projections of outlays flow from each year's estimated budget authority. This model is designed to illustrate the methodology CBO uses to project discretionary spending. The budget authority and outlay data generated by the model do not constitute a CBO estimate."]
[]
["Budget authority is provided by law to allow an agency to incur financial obligations that will result in future outlays (or cash disbursements).  In CBO’s baseline projections, discretionary budget authority over the baseline projection period, typically 10 years, generally is estimated by adjusting the appropriation provided for the current year to account for inflation projected for future years. In cost estimates for spending subject to appropriation, budget authority may be explicitly stated in legislation or estimated by CBO."]
[]
["The interactive model allows a user to choose whether to enter budget authority for each year or only for the current year of the projection period (in which case the model extrapolates future years’ budget authority by adjusting the current-year amount for inflation)."]
[]
["The inflation factors used in the model correspond to those in CBO’s February 2021 economic forecast. As specified by section 257 of the Balanced Budget and Deficit Control Act of 1985, CBO must use two main inflators in its projections of discretionary funding:"]
["•  The employment cost index (ECI) for wages and salaries (called wages in the model), and"]
["•  The chain-weighted gross domestic product (GDP) price index for all other types of budgetary resources (for nonwages)."]
[]
["Inflation weights are used to adjust the application of inflation factors according to the share of budget authority that is allocated to federal wage and nonwage amounts for a given account. The amounts are cumulative, and by the end of the projection period, the effects of 10 years of inflation from the base year are shown."]
[]
["The interactive model allows users to choose from illustrative inflation weights, which adjust the proportion of budget authority to be inflated using the ECI or the GDP price index according to broad trends for similar budget activities. Alternatively, users could enter their own weights."]
[]
["Outlays consist of cash disbursements to pay federal obligations. For most discretionary spending, projected outlays are calculated by applying spendout rates—the rates at which the funds are actually disbursed—to budget authority. "]
[]
["How quickly budget authority translates to outlays varies significantly by the type of spending. Analysts construct individual rates for each account on the basis of historical patterns. For example, outlays for an agency's salaries and administrative expenses generally occur fairly quickly; most of the budget authority is disbursed in the year for which funds are appropriated. Outlays for construction of infrastructure or weapon systems, by contrast, can occur over several years. In many cases, some portion of budget authority may be unobligated at the end of a period in which agencies may legally obligate funds; that unobligated budget authority reverts to the Treasury and thus does not result in outlays. "]
[]
["The interactive model allows users to choose from illustrative spendout rates that are not specific to a particular account but instead indicate broad trends among similar functions. Alternatively, users may enter their own rates. In no case can more than 100 percent of the budget authority be spent."]
[]
["Outlays from prior years’ budget authority are typically included in baseline projections but normally are not included in cost estimates, which focus on the potential effects of new authorizations. Analysts calculate outlays from the unspent balances of prior years’ budget authority, if applicable, using detailed information from the Treasury, including amounts of unspent budget authority in each account at the beginning of a fiscal year and the extent to which those amounts are obligated. "]
[]
["The interactive model allows users to enter outlays—if any—that stem from budget authority provided in prior years."]
[]
["CBO wants to hear about your experience using this interactive resource. Send your feedback to communications@cbo.gov."]

{"sheet":"Instructions","index":1,"n_rows":18,"n_cols":1,"rows_kept":18,"cut":false,"hidden":false,"merged":[[15,0,15,15],[14,0,14,15],[10,0,10,15],[11,0,11,15],[12,0,12,15]]}
["This workbook supplements CBO's February 2021 report The Budget and Economic Outlook: 2021 to 2031."]
["www.cbo.gov/publication/56970"]
[]
[]
["***IMPORTANT: The budget authority and outlays generated by this model are illustrative and do not constitute a CBO estimate.***"]
[]
["Instructions for Using the Interactive Waterfall Model"]
["Make sure you have clicked “Enable Content” at the top of the worksheet to allow the model to run. "]
[]
["1. Using the dropdown menu on line 2, select the type of account you would like to model."]
["You may select from accounts that primarily fund salaries and expenses, grants, construction, or general discretionary expenses or choose a custom option."]
["For any of the first four options, the model will prefill the entries with illustrative inflation weights and spendout rates that are broadly representative of the weights and rates used by CBO analysts for the various types of accounts."]
["The custom option allows you to input specific inflation weights and spendout rates. Spendout rates may not total more than 100 percent."]
[]
["2. Using the dropdown menu on line 15, select whether you would like the model to inflate the budget authority from the current year's amount to produce the budget authority for subsequent years, or if you would like to specify the budget authority for each year."]
["Enter budget authority in the spaces provided on line 19."]
[]
["3. On line 21, if desired, enter outlays that stem from budget authority appropriated in prior years."]

{"sheet":"Interactive Model","index":2,"n_rows":36,"n_cols":18,"rows_kept":36,"cut":false,"hidden":false,"merged":[[16,15,16,17],[35,2,35,13]]}
[]
[null,null,"Account Type"]
[null,null,"Inflation Rates",null,"Weights",2022,2023,2024,2025,2026,2027,2028,2029,2030,2031]
[]
[null,null,"Nonwages",null,0.4,1.0189441653441929,1.0390034742685623,1.0604615005601834,1.0830259651737437,1.1063329883149315,1.1304576528360424,1.155162305187202,1.1799842608931068,1.2049021920710761,1.2300090273527913]
[null,null,"Wages",null,{"$f":"1-E5","v":0.6},1.0337086848635233,1.0700683541449127,1.1087834271978758,1.1511300838494172,1.1962520808761465,1.2443461995356913,1.293122081865091,1.3438098812300387,1.3951326682139764,1.4484155750784047]
[null,null,"Weighted Average",null,null,{"$f":"(F5 * E5) + (F6 * E6)","v":1.0278028770557912},{"$f":"(G5 * E5) + (G6 * E6)","v":1.0576424021943727},{"$f":"(H5 * E5) + (H6 * E6)","v":1.0894546565427989},{"$f":"(I5 * E5) + (I6 * E6)","v":1.1238884363791477},{"$f":"(J5 * E5) + (J6 * E6)","v":1.1602844438516606},{"$f":"(K5 * E5) + (K6 * E6)","v":1.1987907808558318},{"$f":"(L5 * E5) + (L6 * E6)","v":1.2379381711939355},{"$f":"(M5 * E5) + (M6 * E6)","v":1.2782796330952659},{"$f":"(N5 * E5) + (N6 * E6)","v":1.3190404777568163},{"$f":"(O5 * E5) + (O6 * E6)","v":1.3610529559881592}]
[]
[]
[]
[null,null,"Spendout Rates"]
[null,null,"Year",null,1,2,3,4,5,6,7,8,9,10,11,null,"Unspent","Total"]
[null,null,"Current Year 2021",0.1,0.8,0.15,0.05,0,0,0,0,0,0,0,0,null,{"$f":"1 - SUM(E13:O13)","v":0},{"$f":"SUM(E13:O13) + Q13","v":1}]
[]
[null,null,"Budget Authority and Outlay Waterfall"]
[]
[null,null,null,null,2021,2022,2023,2024,2025,2026,2027,2028,2029,2030,2031,"Total, 2021-2031"]
[]
[null,null,"Budget Authority (BA)",null,1000,{"$f":"E19*F7","v":1027.8028770557912},{"$f":"E19*G7","v":1057.6424021943726},{"$f":"E19*H7","v":1089.4546565427988},{"$f":"E19*I7","v":1123.8884363791476},{"$f":"E19*J7","v":1160.2844438516606},{"$f":"E19*K7","v":1198.7907808558318},{"$f":"E19*L7","v":1237.9381711939354},{"$f":"E19*M7","v":1278.279633095266},{"$f":"E19*N7","v":1319.0404777568162},{"$f":"E19*O7","v":1361.0529559881593},null,{"$f":"SUM(E19:O19)","v":12854.17483491378}]
[null,null,"Budget Authority (BA)",null,50,null,null,null,null,null,null,null,null,null,null,null,{"$f":"SUM(E20:O20)","v":50}]
[null,null,"Outlays from Pre-2021 BA"]
[]
[null,null,2021,null,{"$f":"$E$19*$E$13","v":800},{"$f":"$E$19*$F$13","v":150},{"$f":"$E$19*$G$13","v":50},{"$f":"$E$19*$H$13","v":0},{"$f":"$E$19*$I$13","v":0},{"$f":"$E$19*$J$13","v":0},{"$f":"$E$19*$K$13","v":0},{"$f":"$E$19*$L$13","v":0},{"$f":"$E$19*$M$13","v":0},{"$f":"$E$19*$N$13","v":0},{"$f":"$E$19*$O$13","v":0}]
[null,null,2022,null,null,{"$f":"$F$19*$E$13","v":822.24230164463302},{"$f":"$F$19*$F$13","v":154.17043155836868},{"$f":"$F$19*$G$13","v":51.390143852789564},{"$f":"$F$19*$H$13","v":0},{"$f":"$F$19*$I$13","v":0},{"$f":"$F$19*$J$13","v":0},{"$f":"$F$19*$K$13","v":0},{"$f":"$F$19*$L$13","v":0},{"$f":"$F$19*$M$13","v":0},{"$f":"$F$19*$N$13","v":0}]
[null,null,2023,null,null,null,{"$f":"$G$19*$E$13","v":846.11392175549815},{"$f":"$G$19*$F$13","v":158.6463603291559},{"$f":"$G$19*$G$13","v":52.882120109718635},{"$f":"$G$19*$H$13","v":0},{"$f":"$G$19*$I$13","v":0},{"$f":"$G$19*$J$13","v":0},{"$f":"$G$19*$K$13","v":0},{"$f":"$G$19*$L$13","v":0},{"$f":"$G$19*$M$13","v":0}]
[null,null,2024,null,null,null,null,{"$f":"$H$19*$E$13","v":871.56372523423909},{"$f":"$H$19*$F$13","v":163.41819848141981},{"$f":"$H$19*$G$13","v":54.472732827139943},{"$f":"$H$19*$H$13","v":0},{"$f":"$H$19*$I$13","v":0},{"$f":"$H$19*$J$13","v":0},{"$f":"$H$19*$K$13","v":0},{"$f":"$H$19*$L$13","v":0}]
[null,null,2025,null,null,null,null,null,{"$f":"$I$19*$E$13","v":899.11074910331808},{"$f":"$I$19*$F$13","v":168.58326545687214},{"$f":"$I$19*$G$13","v":56.19442181895738},{"$f":"$I$19*$H$13","v":0},{"$f":"$I$19*$I$13","v":0},{"$f":"$I$19*$J$13","v":0},{"$f":"$I$19*$K$13","v":0}]
[null,null,2026,null,null,null,null,null,null,{"$f":"$J$19*$E$13","v":928.22755508132855},{"$f":"$J$19*$F$13","v":174.04266657774909},{"$f":"$J$19*$G$13","v":58.014222192583034},{"$f":"$J$19*$H$13","v":0},{"$f":"$J$19*$I$13","v":0},{"$f":"$J$19*$J$13","v":0}]
[null,null,2027,null,null,null,null,null,null,null,{"$f":"$K$19*$E$13","v":959.03262468466551},{"$f":"$K$19*$F$13","v":179.81861712837477},{"$f":"$K$19*$G$13","v":59.939539042791594},{"$f":"$K$19*$H$13","v":0},{"$f":"$K$19*$I$13","v":0}]
[null,null,2028,null,null,null,null,null,null,null,null,{"$f":"$L$19*$E$13","v":990.35053695514841},{"$f":"$L$19*$F$13","v":185.69072567909032},{"$f":"$L$19*$G$13","v":61.896908559696776},{"$f":"$L$19*$H$13","v":0}]
[null,null,2029,null,null,null,null,null,null,null,null,null,{"$f":"$M$19*$E$13","v":1022.6237064762129},{"$f":"$M$19*$F$13","v":191.7419449642899},{"$f":"$M$19*$G$13","v":63.913981654763305}]
[null,null,2030,null,null,null,null,null,null,null,null,null,null,{"$f":"$N$19*$E$13","v":1055.232382205453},{"$f":"$N$19*$F$13","v":197.85607166352244}]
[null,null,2031,null,null,null,null,null,null,null,null,null,null,null,{"$f":"$O$19*$E$13","v":1088.8423647905274}]
[null,null,"Total Outlays",null,{"$f":"SUM(E21:E33)","v":800},{"$f":"SUM(F21:F33)","v":972.24230164463302},{"$f":"SUM(G21:G33)","v":1050.2843533138669},1081.6002294161844,1115.4110676944565,1151.2835533653406,1189.2697130813719,1228.1833762761062,1268.2539711980949,1308.8712357294396,1350.6124181088132,null,{"$f":"SUM(E34:O34)","v":12516.012219828306}]
[]
[null,null,"The inflation factors used in this model underlie CBO's February 2021 baseline budget projections."]

{"sheet":"SpendoutRates","index":3,"n_rows":10,"n_cols":2,"rows_kept":10,"cut":false,"hidden":true,"merged":[]}
["NAME","SpendoutTypes"]
["Salaries and Expenses"]
["Grants"]
["Construction"]
["General Discretionary"]
["Custom (user enters inflation weights and spendout rates)"]
[]
["NAME","BATypes"]
["Enter BA for Current Year (model fills in subsequent years)"]
["Enter BA for all years"]